Cogmind - Beta 9.4 @@@ ROGUE MODE // 2020.02.17 @ 23:37:10 Player: lsend Result: Escaped! Performance ------------- Evolutions (9) 4500 Regions Visited (28) 5600 Robots Destroyed (15) 75 Value Destroyed (1148) 1148 Prototype IDs (30) 600 Alien Tech Used (0) 0 Bonus (7736) 7736 TOTAL SCORE: 19659 Bonus ------- Pacifist 928 High Alert Combat Kills 157 Follower Combat Kills 955 Entered Garrisons 1400 Used RIF Installer 1000 Aligned with FarCom 300 Win 3000 Friendly Fire -4 Cogmind --------- Core Integrity 1497/1600 Matter 300/300 Energy 272/580 System Corruption 6% Temperature Cool (2) Movement Flying (39) Location To Epsilon Eridani Parts ------- > --- POWER (2) -------- Graviton Reactor Graviton Reactor > --- PROPULSION (5) --- Flying Fortress v7 Cooled Impulse Thruster > --- UTILITY (16) ----- Large Storage Unit Gravity Neutralizing Apparatus Triangulator Improved Signal Interpreter Long-range Terrain Scanner Force Booster Advanced Transmission Jammer Improved Power Shielding System Shield Relay Coupler [NC] (16) Relay Coupler [Behemoth] (6) > --- WEAPON (2) ------- Power Sword > --- INVENTORY (10) --- Graviton Reactor Cooled Impulse Thruster Cooled Impulse Thruster Cooled Impulse Thruster Cooled Impulse Thruster Cooled Impulse Thruster Enhanced Nova Cannon Improved Datajack Enhanced Force Lance Peak State ------------ > --- POWER ------------ Graviton Reactor Graviton Reactor > --- PROPULSION ------- Flying Fortress v7 Cooled Impulse Thruster > --- UTILITY ---------- Large Storage Unit Gravity Neutralizing Apparatus Triangulator Improved Signal Interpreter Force Booster Advanced Transmission Jammer Improved Phase Shifter Improved Cloaking Device Improved Medium Armor Plating Focal Shield Advanced Force Field System Shield Relay Coupler [NC] Relay Coupler [Behemoth] > --- WEAPON ----------- Improved Datajack Power Sword > --- INVENTORY -------- Graviton Reactor Cooled Impulse Thruster Cooled Impulse Thruster Cooled Impulse Thruster Cooled Impulse Thruster Cooled Impulse Thruster Experimental Reclamation Unit Improved Datajack Enhanced Force Lance [Rating: 140] Favorites ----------- Power Graviton Reactor Engine Heavy Ion Engine Power Core Nuclear Core Reactor Graviton Reactor Propulsion Flying Fortress v7 Treads Light Treads Flight Unit Flying Fortress v7 Utility Improved Signal Interpreter Device Force Booster Storage Large Storage Unit Processor Improved Signal Interpreter Hackware Relay Coupler [Behemoth] Protection Improved Light Armor Plating Weapon Katana Energy Gun Backup Laser I Launcher Mini Grenade Launcher Impact Weapon Flail Slashing Weapon Katana Piercing Weapon Enhanced Force Lance Special Melee Weapon Improved Datajack Build | -11 -10 -10 -9 -9 -9 -8 -8 -8 -8 -8 -7 -7 -7 -5 -5 -5 -5 -4 -4 -4 -3 -3 -3 -3 -3 -3 -2 -1 ------- Run | Scr Mat Min Mat Min Exi Min Mat Gar Mat Gar Fac Sto Rec Fac Gar Fac Gar Fac Gar Ext Res Gar Res Gar Res Arm Res Acc Slots Evolved 18 | . . . 2 . . . 2 . . . 2 . . 4 . . . 2 . . 2 . . . . . 2 2 Power 1 | . . . . . . . . . . . 1 . . . . . . . . . . . . . . . . . Propulsion 3 | . . . 1 . . . 1 . . . . . . . . . . . . . . . . . . . 1 . Utility 14 | . . . 1 . . . 1 . . . 1 . . 4 . . . 2 . . 2 . . . . . 1 2 Weapon . | . . . . . . . . . . . . . . . . . . . . . . . . . . . . . Parts Attached 64 | 2 . 1 1 2 . . 3 . 4 1 5 6 2 3 1 5 . 1 . 6 9 . . . 6 . 3 3 Power 10 | . . . . . . . . . . 1 . 1 1 . . 2 . . . . 4 . . . 1 . . . Engine 3 | . . . . . . . . . . . . . . . . 1 . . . . 2 . . . . . . . Core 3 | . . . . . . . . . . 1 . . 1 . . 1 . . . . . . . . . . . . Reactor 4 | . . . . . . . . . . . . 1 . . . . . . . . 2 . . . 1 . . . Propulsion 8 | 2 . . 1 1 . . 2 . 1 . . . . . . . . . . . . . . . . . 1 . Treads 4 | 2 . . . 1 . . 1 . . . . . . . . . . . . . . . . . . . . . Leg . | . . . . . . . . . . . . . . . . . . . . . . . . . . . . . Wheel . | . . . . . . . . . . . . . . . . . . . . . . . . . . . . . Hover . | . . . . . . . . . . . . . . . . . . . . . . . . . . . . . Flight 4 | . . . 1 . . . 1 . 1 . . . . . . . . . . . . . . . . . 1 . Utility 32 | . . 1 . . . . . . 3 . 2 3 . 2 . 3 . 1 . 4 4 . . . 4 . 2 3 Device 14 | . . 1 . . . . . . . . . 1 . . . 1 . 1 . 2 3 . . . 2 . 2 1 Storage 2 | . . . . . . . . . . . 1 . . . . . . . . . 1 . . . . . . . Processor 1 | . . . . . . . . . 1 . . . . . . . . . . . . . . . . . . . Hackware 3 | . . . . . . . . . . . . . . 1 . . . . . . . . . . 1 . . 1 Protection 12 | . . . . . . . . . 2 . 1 2 . 1 . 2 . . . 2 . . . . 1 . . 1 Artifact . | . . . . . . . . . . . . . . . . . . . . . . . . . . . . . Weapon 14 | . . . . 1 . . 1 . . . 3 2 1 1 1 . . . . 2 1 . . . 1 . . . Energy Gun . | . . . . . . . . . . . . . . . . . . . . . . . . . . . . . Energy Cannon . | . . . . . . . . . . . . . . . . . . . . . . . . . . . . . Ballistic Gun . | . . . . . . . . . . . . . . . . . . . . . . . . . . . . . Ballistic Cannon . | . . . . . . . . . . . . . . . . . . . . . . . . . . . . . Launcher 2 | . . . . 1 . . . . . . . . . . 1 . . . . . . . . . . . . . Special Weapon . | . . . . . . . . . . . . . . . . . . . . . . . . . . . . . Impact Weapon 5 | . . . . . . . . . . . 2 1 . 1 . . . . . 1 . . . . . . . . Slashing Weapon 3 | . . . . . . . 1 . . . 1 . . . . . . . . . . . . . 1 . . . Piercing Weapon 1 | . . . . . . . . . . . . . . . . . . . . . 1 . . . . . . . Special Melee Weapon 3 | . . . . . . . . . . . . 1 1 . . . . . . 1 . . . . . . . . Unidentified Prototypes 4 | . . . . . . . . . . . . 1 . . . 1 . . . . 1 . . . . . 1 . Parts Lost 25 | . . . 3 1 . . 1 . . . . 2 . . 7 . . . 3 1 . . . . . 1 . 6 Power 3 | . . . . . . . . . . . . 1 . . 2 . . . . . . . . . . . . . Propulsion 3 | . . . 3 . . . . . . . . . . . . . . . . . . . . . . . . . Utility 15 | . . . . 1 . . . . . . . 1 . . 4 . . . 2 1 . . . . . 1 . 5 Weapon 4 | . . . . . . . 1 . . . . . . . 1 . . . 1 . . . . . . . . 1 Highest Loss Streak 6 | . . . 3 1 . . 1 . . . . 1 . . 6 . . . 3 1 . . . . . 1 . 4 Average Slot Usage (%) 62 | . 28 30 26 20 22 22 15 . 48 63 64 71 73 70 59 46 58 55 54 56 72 76 76 76 77 77 75 77 Engine 1 | . . . . . . . . . 9 2 . . . . . 5 5 5 5 5 4 4 4 4 3 . . . Core 2 | . . . . . . . . . . 6 7 2 4 5 4 4 5 5 5 5 . . . . . . . . Reactor 3 | . . . . . . . . . . . . 6 7 5 4 . . . . . 3 4 4 4 5 9 8 8 Treads 1 | . 28 28 15 9 11 11 7 . . . . . . . . . . . . . . . . . . . . . Flight 5 | . . . . . . . . . 9 9 7 7 7 5 5 5 5 5 5 5 4 4 4 4 4 4 8 8 Device 8 | . . 2 11 6 . . . . . . . . . . . 3 5 8 9 8 24 28 28 28 28 28 28 31 Storage 4 | . . . . . . . . . . . 6 7 7 5 5 5 5 5 5 5 4 4 4 4 4 4 4 4 Processor 4 | . . . . . . . . . 4 9 7 7 7 5 5 5 5 5 5 5 4 4 4 4 4 4 4 4 Hackware 2 | . . . . . . . . . . . . . . 5 5 5 5 5 5 5 4 4 4 4 6 9 8 11 Protection 12 | . . . . . . . . . 7 18 19 22 23 23 15 1 11 10 9 7 9 9 9 9 8 5 4 2 Impact Weapon 2 | . . . . . . . . . . . 5 6 . 5 1 . . . . 4 . . . . . . . . Slashing Weapon 3 | . . . . . . . . . . . 4 7 7 5 5 5 5 5 4 . . . . . . 4 4 4 Special Melee Weapon 1 | . . . . . . . . . . . . . 6 . . . . . . 4 4 4 4 4 4 4 4 3 Naked Turns 96 | . . . . . . . 17 75 4 . . . . . . . . . . . . . . . . . . . Heaviest Build 80 | . . 1 1 1 1 1 1 . 13 19 39 52 49 53 58 46 46 51 51 55 78 78 78 78 80 80 80 80 Greatest Support 95 | 3 3 3 4 3 3 3 3 3 72 72 72 72 72 72 72 72 72 72 72 72 84 84 84 84 84 84 95 95 Greatest Overweight (x) . | . . . . . . . . . . . . . . . . . . . . . . . . . . . . . Average Overweight (x) . | . . . . . . . . . . . . . . . . . . . . . . . . . . . . . Largest Inventory Capacity 10 | 4 4 4 4 4 4 4 4 4 4 4 10 10 10 10 10 10 10 10 10 10 10 10 10 10 10 10 10 10 Average Capacity 8 | 4 4 4 4 4 4 4 4 4 4 4 9 10 10 10 10 10 10 10 10 10 10 10 10 10 10 10 10 10 Most Carried 10 | . 1 2 2 1 4 4 4 4 4 1 5 9 10 9 8 7 7 8 8 8 10 10 10 10 10 10 9 9 Average Carried 7 | . . 1 1 1 2 4 3 4 . 1 2 8 9 8 8 7 7 7 8 5 8 10 10 10 9 10 9 8 Final Capacity 10 | 4 4 4 4 4 4 4 4 4 4 4 10 10 10 10 10 10 10 10 10 10 10 10 10 10 10 10 10 10 Final Carried 10 | . 1 2 1 1 4 4 4 4 1 1 5 9 10 8 8 7 7 8 8 5 10 10 10 10 10 10 9 9 Class Distribution -------------------- 71% | Mutant 21% | Infiltrator-Mutant 4% | Commander-Mutant Dominant Class ---------------- Mutant | -10/Materials Mutant | -10/Mines Mutant | -9/Materials Mutant | -9/Mines Mutant | -9/Exiles Mutant | -8/Mines Mutant | -8/Materials Mutant | -8/Garrison Mutant | -8/Materials Mutant | -8/Garrison Mutant | -7/Factory Mutant | -7/Storage Mutant | -7/Recycling Mutant | -5/Factory Mutant | -5/Garrison Mutant | -5/Factory Mutant | -5/Garrison Mutant | -4/Factory Mutant | -4/Garrison Mutant | -4/Extension Infiltrator-Mutant | -3/Research Infiltrator-Mutant | -3/Garrison Infiltrator-Mutant | -3/Research Infiltrator-Mutant | -3/Garrison Infiltrator-Mutant | -3/Research Infiltrator-Mutant | -3/Armory Infiltrator-Mutant | -2/Research Infiltrator-Mutant | -1/Access Resources | -11 -10 -10 -9 -9 -9 -8 -8 -8 -8 -8 -7 -7 -7 -5 -5 -5 -5 -4 -4 -4 -3 -3 -3 -3 -3 -3 -2 -1 ----------- Run | Scr Mat Min Mat Min Exi Min Mat Gar Mat Gar Fac Sto Rec Fac Gar Fac Gar Fac Gar Ext Res Gar Res Gar Res Arm Res Acc Matter Collected 878 | 188 . 42 10 20 . . . . 40 . . 172 27 . 70 . . . . 85 110 . . . 10 . . 104 Remotely . | . . . . . . . . . . . . . . . . . . . . . . . . . . . . . Salvage Created 719 | . . . . . . . . . . . . 181 26 . 303 . . . . . 169 . 40 . . . . . Parts 31 | . . . . . . . . . . . . 7 2 . 12 . . . . . 6 . 4 . . . . . Haulers Intercepted 2 | . . . . . . . . . . . . . . . . . . . . . 2 . . . . . . . Recyclers Shooed . | . . . . . . . . . . . . . . . . . . . . . . . . . . . . . Parts Field Recycled . | . . . . . . . . . . . . . . . . . . . . . . . . . . . . . Retrieved Matter . | . . . . . . . . . . . . . . . . . . . . . . . . . . . . . Parts Self-Destructed . | . . . . . . . . . . . . . . . . . . . . . . . . . . . . . Prevented . | . . . . . . . . . . . . . . . . . . . . . . . . . . . . . Kills | -11 -10 -10 -9 -9 -9 -8 -8 -8 -8 -8 -7 -7 -7 -5 -5 -5 -5 -4 -4 -4 -3 -3 -3 -3 -3 -3 -2 -1 ------- Run | Scr Mat Min Mat Min Exi Min Mat Gar Mat Gar Fac Sto Rec Fac Gar Fac Gar Fac Gar Ext Res Gar Res Gar Res Arm Res Acc Combat Hostiles Destroyed 13 | . . . . . . . . . . . . 3 1 . 8 . . . . . . . 1 . . . . . Melee 5 | . . . . . . . . . . . . 3 1 . . . . . . . . . 1 . . . . . AOE 7 | . . . . . . . . . . . . . . . 7 . . . . . . . . . . . . . Classes Destroyed 6 | . . . . . . . . . . . . 3 . . 2 . . . . . 1 . . . . . . . Hauler 2 | . . . . . . . . . . . . . . . . . . . . . 2 . . . . . . . Swarmer 7 | . . . . . . . . . . . . . . . 6 . . . . . . . 1 . . . . . Grunt 2 | . . . . . . . . . . . . 1 1 . . . . . . . . . . . . . . . Sentry 1 | . . . . . . . . . . . . 1 . . . . . . . . . . . . . . . . Hunter 2 | . . . . . . . . . . . . . . . 2 . . . . . . . . . . . . . Programmer 1 | . . . . . . . . . . . . 1 . . . . . . . . . . . . . . . . Best Kill Streak 5 | . . . . . . . . . . . . 1 1 . 5 . . . . . 1 . 1 . . . . . Combat Bots Only 5 | . . . . . . . . . . . . 1 1 . 5 . . . . . . . 1 . . . . . Max Kills in Single Turn 2 | . . . . . . . . . . . . 1 1 . 2 . . . . . 1 . 1 . . . . . Gunslinging . | . . . . . . . . . . . . . . . . . . . . . . . . . . . . . Exploded 2 | . . . . . . . . . . . . . . . 2 . . . . . . . . . . . . . Melee 1 | . . . . . . . . . . . . 1 1 . . . . . . . . . 1 . . . . . Uniques/NPCs Destroyed . | . . . . . . . . . . . . . . . . . . . . . . . . . . . . . Combat | -11 -10 -10 -9 -9 -9 -8 -8 -8 -8 -8 -7 -7 -7 -5 -5 -5 -5 -4 -4 -4 -3 -3 -3 -3 -3 -3 -2 -1 -------- Run | Scr Mat Min Mat Min Exi Min Mat Gar Mat Gar Fac Sto Rec Fac Gar Fac Gar Fac Gar Ext Res Gar Res Gar Res Arm Res Acc Damage Taken 5577 | . . 292 406 35 . . 228 249 30 33 279 621 155 . 879 . 122 . 530 160 125 74 81 294 . 197 50 737 Core 1351 | . . 92 280 31 . . 107 249 . 16 37 62 7 . 150 . . . 95 21 . . 19 53 . 29 . 103 Absorbed by Shields 1223 | . . . . . . . . 22 . . . . . . 53 . . . 54 . 131 74 82 111 . 205 51 440 Core Remaining (%) 76 | 100 . 63 . . . 22 . . . 32 . . 84 . . . 85 . . 89 . . . . . 92 100 93 Volleys Fired 12 | . . . . . . . . . . . . . . . 12 . . . . . . . . . . . . . Largest 1 | . . . . . . . . . . . . . . . 1 . . . . . . . . . . . . . Hottest 39 | . . . . . . . . . . . . . . . 39 . . . . . . . . . . . . . Shots Fired 12 | . . . . . . . . . . . . . . . 12 . . . . . . . . . . . . . Gun . | . . . . . . . . . . . . . . . . . . . . . . . . . . . . . Cannon . | . . . . . . . . . . . . . . . . . . . . . . . . . . . . . Launcher 12 | . . . . . . . . . . . . . . . 12 . . . . . . . . . . . . . Special . | . . . . . . . . . . . . . . . . . . . . . . . . . . . . . Kinetic . | . . . . . . . . . . . . . . . . . . . . . . . . . . . . . Thermal . | . . . . . . . . . . . . . . . . . . . . . . . . . . . . . Explosive . | . . . . . . . . . . . . . . . . . . . . . . . . . . . . . Electromagnetic 12 | . . . . . . . . . . . . . . . 12 . . . . . . . . . . . . . Robot Hit Streak 2 | . . . . . . . . . . . . . . . 2 . . . . . . . . . . . . . Robot Miss Streak 1 | . . . . . . . . . . . . . . . 1 . . . . . . . . . . . . . Penetration Max . | . . . . . . . . . . . . . . . . . . . . . . . . . . . . . Secondary Targets . | . . . . . . . . . . . . . . . . . . . . . . . . . . . . . Shots Hit Robots 58 | . . . . . . . . . . . . 12 19 . 9 . . . . 13 2 . 1 . . . 2 . Core Hits 29 | . . 1 2 1 . . . . . . . 7 1 . 14 . . . . . 2 . 1 . . . . . Critical Hits . | . . . . . . . . . . . . . . . . . . . . . . . . . . . . . Critical Kills . | . . . . . . . . . . . . . . . . . . . . . . . . . . . . . Critical Parts Destroyed . | . . . . . . . . . . . . . . . . . . . . . . . . . . . . . Melee Attacks 111 | . . . . . . . . . . . 1 45 19 . 9 . 1 . . 16 3 1 2 . . 5 2 7 Impact 14 | . . . . . . . . . . . 1 9 . . . . . . . 3 1 . . . . . . . Slashing 58 | . . . . . . . . . . . . 35 1 . 9 . 1 . . . . . . . . 5 . 7 Piercing 5 | . . . . . . . . . . . . . . . . . . . . . 2 1 2 . . . . . Sneak Attacks 36 | . . . . . . . . . . . . 1 18 . . . . . . 13 2 . . . . . 2 . Combat Hostiles . | . . . . . . . . . . . . . . . . . . . . . . . . . . . . . Follow-up Attacks 4 | . . . . . . . . . . . . 4 . . . . . . . . . . . . . . . . Damage Inflicted 1445 | . . 18 11 9 . . . 14 . . . 342 38 . 795 . . . . . 134 . 84 . . . . . Guns . | . . . . . . . . . . . . . . . . . . . . . . . . . . . . . Cannons . | . . . . . . . . . . . . . . . . . . . . . . . . . . . . . Explosions 631 | . . . . . . . . . . . . . . . 631 . . . . . . . . . . . . . Melee 762 | . . . . . . . . . . . . 342 38 . 164 . . . . . 134 . 84 . . . . . Ramming 52 | . . 18 11 9 . . . 14 . . . . . . . . . . . . . . . . . . . . Kinetic . | . . . . . . . . . . . . . . . . . . . . . . . . . . . . . Thermal 45 | . . . . . . . . . . . . . . . 45 . . . . . . . . . . . . . Explosive . | . . . . . . . . . . . . . . . . . . . . . . . . . . . . . Electromagnetic 586 | . . . . . . . . . . . . . . . 586 . . . . . . . . . . . . . Impact 112 | . . . . . . . . . . . . 66 . . . . . . . . 46 . . . . . . . Slashing 478 | . . . . . . . . . . . . 276 38 . 164 . . . . . . . . . . . . . Piercing 172 | . . . . . . . . . . . . . . . . . . . . . 88 . 84 . . . . . Highest Corruption 6 | . . . . 2 2 2 . . . . . 3 3 . . . . . . 1 1 1 4 4 4 4 . 6 Average Corruption 2 | . . . . 2 2 2 . . . . . 2 3 . . . . . . 1 1 1 1 4 4 4 . 3 Corruption Purged . | . . . . . . . . . . . . . . . . . . . . . . . . . . . . . Effects 43 | . . . . 1 1 . . . . . . 14 10 . . . . . . 3 . . 2 2 2 3 . 5 Message Errors 17 | . . . . 1 . . . . . . . 6 4 . . . . . . . . . 1 2 1 1 . 1 Matter Fused 6 | . . . . . . . . . . . . 4 1 . . . . . . . . . . . . 1 . . Heat Flow Errors 4 | . . . . . . . . . . . . . 2 . . . . . . . . . . . . 1 . 1 Energy Discharges 9 | . . . . . 1 . . . . . . 2 1 . . . . . . 2 . . . . . . . 3 Parts Rejected 1 | . . . . . . . . . . . . . . . . . . . . . . . . . 1 . . . Data Loss (minor) 4 | . . . . . . . . . . . . 2 . . . . . . . 1 . . 1 . . . . . Targeting Errors 2 | . . . . . . . . . . . . . 2 . . . . . . . . . . . . . . . Overload Shots . | . . . . . . . . . . . . . . . . . . . . . . . . . . . . . Overflow Damage 2 | . . . . . . . . . . . . . . . 2 . . . . . . . . . . . . . Projectiles . | . . . . . . . . . . . . . . . . . . . . . . . . . . . . . Explosions 2 | . . . . . . . . . . . . . . . 2 . . . . . . . . . . . . . Melee . | . . . . . . . . . . . . . . . . . . . . . . . . . . . . . Knockbacks . | . . . . . . . . . . . . . . . . . . . . . . . . . . . . . Impact . | . . . . . . . . . . . . . . . . . . . . . . . . . . . . . Kinetic . | . . . . . . . . . . . . . . . . . . . . . . . . . . . . . Secondary . | . . . . . . . . . . . . . . . . . . . . . . . . . . . . . Self-Inflicted Damage 83 | . . 8 5 4 . . . 7 . . . . . . 59 . . . . . . . . . . . . . Shots 4 | . . . . . . . . . . . . . . . 4 . . . . . . . . . . . . . Rammed 7 | . . 2 3 1 . . . 1 . . . . . . . . . . . . . . . . . . . . Targets Rammed 7 | . . 2 3 1 . . . 1 . . . . . . . . . . . . . . . . . . . . Kicked . | . . . . . . . . . . . . . . . . . . . . . . . . . . . . . Crushed . | . . . . . . . . . . . . . . . . . . . . . . . . . . . . . Highest Temperature 319 | . . . 11 . . . . . . 8 . 319 257 . 13 . . . 5 21 8 . . . . 226 . 99 Average Temperature 98 | . . . 6 . . . . . . 8 . 137 114 . 6 . . . 5 9 4 . . . . 116 . 59 Received Heat Transfer 777 | . . 35 213 . . . 54 . 9 18 42 207 18 . . . . . 29 27 12 . . 56 . 20 8 29 Effects 3 | . . . . . . . . . . . . 3 . . . . . . . . . . . . . . . . Energy Bleed 1 | . . . . . . . . . . . . 1 . . . . . . . . . . . . . . . . Interference 2 | . . . . . . . . . . . . 2 . . . . . . . . . . . . . . . . Siege Activations . | . . . . . . . . . . . . . . . . . . . . . . . . . . . . . Robots Corrupted 1 | . . . . . . . . . . . . . . . 1 . . . . . . . . . . . . . Combat Hostiles 1 | . . . . . . . . . . . . . . . 1 . . . . . . . . . . . . . Parts Fried 1 | . . . . . . . . . . . . . . . 1 . . . . . . . . . . . . . Impact Corruptions . | . . . . . . . . . . . . . . . . . . . . . . . . . . . . . Robots Melted . | . . . . . . . . . . . . . . . . . . . . . . . . . . . . . Combat Hostiles . | . . . . . . . . . . . . . . . . . . . . . . . . . . . . . Parts Melted . | . . . . . . . . . . . . . . . . . . . . . . . . . . . . . Heat Transferred 50 | . . . . . . . . . . . . . . . 50 . . . . . . . . . . . . . Parts Sabotaged . | . . . . . . . . . . . . . . . . . . . . . . . . . . . . . Parts Stolen . | . . . . . . . . . . . . . . . . . . . . . . . . . . . . . Parts Stripped . | . . . . . . . . . . . . . . . . . . . . . . . . . . . . . Power Chain Reactions 1 | . . . . . . . . . . . . . . . 1 . . . . . . . . . . . . . Missiles Intercepted . | . . . . . . . . . . . . . . . . . . . . . . . . . . . . . Alert | -11 -10 -10 -9 -9 -9 -8 -8 -8 -8 -8 -7 -7 -7 -5 -5 -5 -5 -4 -4 -4 -3 -3 -3 -3 -3 -3 -2 -1 ------- Run | Scr Mat Min Mat Min Exi Min Mat Gar Mat Gar Fac Sto Rec Fac Gar Fac Gar Fac Gar Ext Res Gar Res Gar Res Arm Res Acc Peak Influence 967 | . 15 20 44 42 . . 73 62 59 38 131 477 363 967 847 428 349 182 157 552 289 146 103 92 51 176 107 231 Average Influence 171 | . 7 16 17 13 . . 38 52 35 38 51 157 218 967 776 428 338 182 132 313 218 97 83 65 31 99 94 143 Maximum Alert Level 3 | . . . . . . . . . . . . 2 1 3 3 2 1 . . 2 1 . . . . . . 1 Low Security (%) 66 | 100 100 100 100 100 . 100 100 100 100 100 100 56 49 . . . . 100 100 24 29 100 100 100 100 100 100 80 Level 1 21 | . . . . . . . . . . . . 33 50 . . . 100 . . 34 70 . . . . . . 19 Level 2 9 | . . . . . . . . . . . . 10 . . 26 100 . . . 41 . . . . . . . . Level 3 2 | . . . . . . . . . . . . . . 100 73 . . . . . . . . . . . . . Level 4 . | . . . . . . . . . . . . . . . . . . . . . . . . . . . . . Level 5 . | . . . . . . . . . . . . . . . . . . . . . . . . . . . . . High Security . | . . . . . . . . . . . . . . . . . . . . . . . . . . . . . Max Security . | . . . . . . . . . . . . . . . . . . . . . . . . . . . . . Squads Dispatched 23 | . . . 1 1 . . 1 . . . 4 6 1 . . . . . . 6 1 . . . . 2 . . Investigation 13 | . . . . 1 . . 1 . . . 2 1 . . . . . . . 6 1 . . . . 1 . . Extermination 3 | . . . . . . . . . . . 1 2 . . . . . . . . . . . . . . . . Reinforcement 5 | . . . 1 . . . . . . . 1 1 1 . . . . . . . . . . . . 1 . . Assault 1 | . . . . . . . . . . . . 1 . . . . . . . . . . . . . . . . Garrison 1 | . . . . . . . . . . . . 1 . . . . . . . . . . . . . . . . Intercept . | . . . . . . . . . . . . . . . . . . . . . . . . . . . . . Construction Impeded 1 | . . . . . . . . . . . . . 1 . . . . . . . . . . . . . . . Haulers Reinforced . | . . . . . . . . . . . . . . . . . . . . . . . . . . . . . Stealth | -11 -10 -10 -9 -9 -9 -8 -8 -8 -8 -8 -7 -7 -7 -5 -5 -5 -5 -4 -4 -4 -3 -3 -3 -3 -3 -3 -2 -1 --------- Run | Scr Mat Min Mat Min Exi Min Mat Gar Mat Gar Fac Sto Rec Fac Gar Fac Gar Fac Gar Ext Res Gar Res Gar Res Arm Res Acc Distress Signals 13 | . 1 1 1 . . . . . . . 1 2 2 . . . . . . 2 1 . . . 1 . . 1 Communications Jammed 70 | . . . . . . . . . . . . . . . . . . . . . 28 . . . 11 5 . 26 Distress Signals 49 | . . . . . . . . . . . . . . . . . . . . . 7 . . . 11 5 . 26 Times Spotted 267 | . . 16 21 3 . . 4 9 2 3 13 30 12 . 20 3 4 3 18 23 12 6 6 12 4 14 1 28 Peak Tracking Total 17 | . 3 11 17 3 . . 5 11 2 3 7 11 5 . 6 2 4 4 12 14 5 6 4 15 3 7 1 13 Tactical Retreats 43 | . 1 3 1 1 . . . 1 . . 6 6 . . 1 1 . . 1 4 3 . 2 . 1 4 . 7 Traps | -11 -10 -10 -9 -9 -9 -8 -8 -8 -8 -8 -7 -7 -7 -5 -5 -5 -5 -4 -4 -4 -3 -3 -3 -3 -3 -3 -2 -1 ------- Run | Scr Mat Min Mat Min Exi Min Mat Gar Mat Gar Fac Sto Rec Fac Gar Fac Gar Fac Gar Ext Res Gar Res Gar Res Arm Res Acc Traps Triggered 18 | . . . . . . . 4 2 . 1 . . . . 5 . 1 2 . . . . 2 . . 1 . . Indirectly 3 | . . . . . . . . . . . . . . . 3 . . . . . . . . . . . . . Trap Hack Attempts . | . . . . . . . . . . . . . . . . . . . . . . . . . . . . . Triggered . | . . . . . . . . . . . . . . . . . . . . . . . . . . . . . Disarmed . | . . . . . . . . . . . . . . . . . . . . . . . . . . . . . Reprogrammed . | . . . . . . . . . . . . . . . . . . . . . . . . . . . . . Reused . | . . . . . . . . . . . . . . . . . . . . . . . . . . . . . Traps Extracted . | . . . . . . . . . . . . . . . . . . . . . . . . . . . . . Installed . | . . . . . . . . . . . . . . . . . . . . . . . . . . . . . Triggered 1 | . . . . . . . . . . . . . . . 1 . . . . . . . . . . . . . Machines | -11 -10 -10 -9 -9 -9 -8 -8 -8 -8 -8 -7 -7 -7 -5 -5 -5 -5 -4 -4 -4 -3 -3 -3 -3 -3 -3 -2 -1 ---------- Run | Scr Mat Min Mat Min Exi Min Mat Gar Mat Gar Fac Sto Rec Fac Gar Fac Gar Fac Gar Ext Res Gar Res Gar Res Arm Res Acc Machines Disabled 10 | . . . . . . . . . . . . 3 2 . . . 1 . . . 1 1 . . . 2 . . Max in Single Turn 1 | . . . . . . . . . . . . 1 . . . . 1 . . . 1 1 . . . 1 . . Garrison Access 1 | . . . . . . . . . . . . 1 . . . . . . . . . . . . . . . . Garrison Relay 2 | . . . . . . . . . . . . . . . . . 1 . . . . 1 . . . . . . Machines Sabotaged . | . . . . . . . . . . . . . . . . . . . . . . . . . . . . . Garrisons Compromised . | . . . . . . . . . . . . . . . . . . . . . . . . . . . . . Overloaded Fab Kills . | . . . . . . . . . . . . . . . . . . . . . . . . . . . . . Fab Network Shutdowns . | . . . . . . . . . . . . . . . . . . . . . . . . . . . . . Hacking | -11 -10 -10 -9 -9 -9 -8 -8 -8 -8 -8 -7 -7 -7 -5 -5 -5 -5 -4 -4 -4 -3 -3 -3 -3 -3 -3 -2 -1 --------- Run | Scr Mat Min Mat Min Exi Min Mat Gar Mat Gar Fac Sto Rec Fac Gar Fac Gar Fac Gar Ext Res Gar Res Gar Res Arm Res Acc Machines Accessed 64 | . . . 1 1 1 . 2 . 2 . 4 12 12 1 . 2 . 1 . 8 7 . 1 . 2 2 2 3 Terminals 43 | . . . 1 . . . 1 . . . 4 12 4 . . 1 . . . 8 5 . . . 2 2 1 2 Fabricators . | . . . . . . . . . . . . . . . . . . . . . . . . . . . . . Repair Stations 1 | . . . . . . . . . 1 . . . . . . . . . . . . . . . . . . . Recycling Units 8 | . . . . . . . . . . . . . 8 . . . . . . . . . . . . . . . Scanalyzers 3 | . . . . . . . . . . . . . . . . . . . . . 1 . . . . . 1 1 Garrison Access 7 | . . . . . . . 1 . 1 . . . . 1 . 1 . 1 . . 1 . 1 . . . . . Total Hacks 137 | . . . 3 1 1 . 4 . 3 . 12 36 20 1 . 3 . 1 . 20 11 . 1 . 4 3 7 6 Successful 59 | . . . 2 1 1 . 3 . 2 . 2 22 10 1 . 1 . 1 . 6 3 . 1 . 1 1 . 1 Failed 78 | . . . 1 . . . 1 . 1 . 10 14 10 . . 2 . . . 14 8 . . . 3 2 7 5 Catastrophic 12 | . . . . . . . . . . . 2 1 1 . . 1 . . . 2 2 . . . . 2 . 1 Database Lockouts . | . . . . . . . . . . . . . . . . . . . . . . . . . . . . . Manual 41 | . . . . . 1 . 1 . . . 10 16 9 . . . . . . 2 2 . . . . . . . Terminals 105 | . . . 3 . . . 3 . . . 12 36 7 . . 2 . . . 20 8 . . . 4 3 3 4 Fabricators . | . . . . . . . . . . . . . . . . . . . . . . . . . . . . . Repair Stations 2 | . . . . . . . . . 2 . . . . . . . . . . . . . . . . . . . Recycling Units 13 | . . . . . . . . . . . . . 13 . . . . . . . . . . . . . . . Scanalyzers 8 | . . . . . . . . . . . . . . . . . . . . . 2 . . . . . 4 2 Garrison Access 7 | . . . . . . . 1 . 1 . . . . 1 . 1 . 1 . . 1 . 1 . . . . . Terminal Hacks 30 | . . . 2 1 1 . 2 . . . 1 13 2 . . . . . . 5 1 . . . 1 1 . . Prototype ID Bank 1 | . . . . . . . . . . . . . 1 . . . . . . . . . . . . . . . Open Door 11 | . . . . 1 . . . . . . . 5 . . . . . . . 5 . . . . . . . . Branch Access Points 4 | . . . 1 . . . 1 . . . 1 . . . . . . . . . 1 . . . . . . . Emergency Access Points 2 | . . . . . . . . . . . . 1 . . . . . . . . . . . . . 1 . . Unreport Threat 3 | . . . . . . . . . . . . 2 . . . . . . . . . . . . 1 . . . Locate Traps 2 | . . . . . . . 1 . . . . 1 . . . . . . . . . . . . . . . . Recall Investigation 1 | . . . . . . . . . . . . 1 . . . . . . . . . . . . . . . . Zone Layout 5 | . . . 1 . . . . . . . . 3 1 . . . . . . . . . . . . . . . EX-Prototype ID Bank 1 | . . . . . 1 . . . . . . . . . . . . . . . . . . . . . . . Fabricator Hacks . | . . . . . . . . . . . . . . . . . . . . . . . . . . . . . Repair Station Hacks 1 | . . . . . . . . . 1 . . . . . . . . . . . . . . . . . . . Refit 1 | . . . . . . . . . 1 . . . . . . . . . . . . . . . . . . . Recycling Unit Hacks 1 | . . . . . . . . . . . . . 1 . . . . . . . . . . . . . . . Retrieve Components 1 | . . . . . . . . . . . . . 1 . . . . . . . . . . . . . . . Scanalyzer 2 | . . . . . . . . . . . . . . . . . . . . . 1 . . . . . . 1 Insert Component 2 | . . . . . . . . . . . . . . . . . . . . . 1 . . . . . . 1 Garrison Access Hacks 7 | . . . . . . . 1 . 1 . . . . 1 . 1 . 1 . . 1 . 1 . . . . . Unlock Access 7 | . . . . . . . 1 . 1 . . . . 1 . 1 . 1 . . 1 . 1 . . . . . Unauthorized Hacks 41 | . . . . . . . . . . . 2 19 16 . . . . . . 3 1 . . . . . . . Terminals 11 | . . . . . . . . . . . 1 9 . . . . . . . 1 . . . . . . . . Track 4 | . . . . . . . . . . . . 4 . . . . . . . . . . . . . . . . Assimilate 1 | . . . . . . . . . . . . 1 . . . . . . . . . . . . . . . . Botnet 5 | . . . . . . . . . . . 1 3 . . . . . . . 1 . . . . . . . . Disrupt 1 | . . . . . . . . . . . . 1 . . . . . . . . . . . . . . . . Fabricators . | . . . . . . . . . . . . . . . . . . . . . . . . . . . . . Repair Stations . | . . . . . . . . . . . . . . . . . . . . . . . . . . . . . Recycling Units 7 | . . . . . . . . . . . . . 7 . . . . . . . . . . . . . . . Tunnel 7 | . . . . . . . . . . . . . 7 . . . . . . . . . . . . . . . Scanalyzers . | . . . . . . . . . . . . . . . . . . . . . . . . . . . . . Garrison Access . | . . . . . . . . . . . . . . . . . . . . . . . . . . . . . Data Cores Recovered . | . . . . . . . . . . . . . . . . . . . . . . . . . . . . . Used . | . . . . . . . . . . . . . . . . . . . . . . . . . . . . . Hacking Detections 49 | . . . 1 . . . 1 . 1 . 4 11 5 1 . 1 . . . 8 6 . 1 . 2 2 2 3 Full Trace Events 11 | . . . . . . . . . . . 2 1 1 . . . . . . 5 1 . . . . 1 . . Feedback Events 1 | . . . . . . . . . . . . . . . . . . . . 1 . . . . . . . . Corruption 1 | . . . . . . . . . . . . . . . . . . . . 1 . . . . . . . . Feedback Blocked . | . . . . . . . . . . . . . . . . . . . . . . . . . . . . . Robot Schematics Acquired . | . . . . . . . . . . . . . . . . . . . . . . . . . . . . . Robots Built . | . . . . . . . . . . . . . . . . . . . . . . . . . . . . . Matter . | . . . . . . . . . . . . . . . . . . . . . . . . . . . . . Time . | . . . . . . . . . . . . . . . . . . . . . . . . . . . . . Total Robot Build Rating . | . . . . . . . . . . . . . . . . . . . . . . . . . . . . . Part Schematics Acquired . | . . . . . . . . . . . . . . . . . . . . . . . . . . . . . Parts Built . | . . . . . . . . . . . . . . . . . . . . . . . . . . . . . Matter . | . . . . . . . . . . . . . . . . . . . . . . . . . . . . . Time . | . . . . . . . . . . . . . . . . . . . . . . . . . . . . . Total Part Build Rating . | . . . . . . . . . . . . . . . . . . . . . . . . . . . . . Parts Repaired . | . . . . . . . . . . . . . . . . . . . . . . . . . . . . . Time . | . . . . . . . . . . . . . . . . . . . . . . . . . . . . . Parts Recycled . | . . . . . . . . . . . . . . . . . . . . . . . . . . . . . Recycled Matter . | . . . . . . . . . . . . . . . . . . . . . . . . . . . . . Retrieved Matter . | . . . . . . . . . . . . . . . . . . . . . . . . . . . . . Retrieved Components 2 | . . . . . . . . . . . . . 2 . . . . . . . . . . . . . . . Parts Scanalyzed . | . . . . . . . . . . . . . . . . . . . . . . . . . . . . . Part Schematics Acquired . | . . . . . . . . . . . . . . . . . . . . . . . . . . . . . Parts Damaged . | . . . . . . . . . . . . . . . . . . . . . . . . . . . . . Bothacking | -11 -10 -10 -9 -9 -9 -8 -8 -8 -8 -8 -7 -7 -7 -5 -5 -5 -5 -4 -4 -4 -3 -3 -3 -3 -3 -3 -2 -1 ------------ Run | Scr Mat Min Mat Min Exi Min Mat Gar Mat Gar Fac Sto Rec Fac Gar Fac Gar Fac Gar Ext Res Gar Res Gar Res Arm Res Acc Used RIF Installer 2 | . . . . . . . . 1 . . . . . . 1 . . . . . . . . . . . . . Structural Interface 1 | . . . . . . . . . . . . . . . 1 . . . . . . . . . . . . . Robots Hacked 3 | . . . . . . . . . . . . . 1 . . . . . . . . . . . . . 2 . Non-combat 3 | . . . . . . . . . . . . . 1 . . . . . . . . . . . . . 2 . Combat . | . . . . . . . . . . . . . . . . . . . . . . . . . . . . . Robot Hacks Applied 3 | . . . . . . . . . . . . . 1 . . . . . . . . . . . . . 2 . no_distress 1 | . . . . . . . . . . . . . 1 . . . . . . . . . . . . . . . generate_echo 1 | . . . . . . . . . . . . . . . . . . . . . . . . . . . 1 . link_fov 1 | . . . . . . . . . . . . . . . . . . . . . . . . . . . 1 . Relay Couplers Released 8 | . . . . . . . . . . . . 2 . . . . 3 . . . . 3 . . . . . . Machine Destruction 8 | . . . . . . . . . . . . 2 . . . . 3 . . . . 3 . . . . . . Attached 2 | . . . . . . . . . . . . . . 1 . . . . . . . . . . 1 . . . Robots Rewired 15 | . . . . . . . . . . . . 1 10 . . . . . . 4 . . . . . . . . Allies Hacked . | . . . . . . . . . . . . . . . . . . . . . . . . . . . . . Hacks Repelled . | . . . . . . . . . . . . . . . . . . . . . . . . . . . . . Allies | -11 -10 -10 -9 -9 -9 -8 -8 -8 -8 -8 -7 -7 -7 -5 -5 -5 -5 -4 -4 -4 -3 -3 -3 -3 -3 -3 -2 -1 -------- Run | Scr Mat Min Mat Min Exi Min Mat Gar Mat Gar Fac Sto Rec Fac Gar Fac Gar Fac Gar Ext Res Gar Res Gar Res Arm Res Acc Total Allies 33 | . . . . 2 . . . . . . . 11 10 . . . . . . 10 . . . . . . . . Largest Group 10 | . . . . 2 . . . . . . . 10 10 2 1 . . . . 8 . . . . . . . . Highest-Rated Group 301 | . . . . 39 . . . . . . . 173 187 30 20 . . . . 301 . . . . . . . . Highest-Rated Ally 49 | . . . . 31 . . . . . . . 29 34 20 20 . . . . 49 . . . . . . . . Total Orders . | . . . . . . . . . . . . . . . . . . . . . . . . . . . . . Ally Attacks 179 | . . . . 8 . . . . . . . 46 29 . 5 . . . . 91 . . . . . . . . Total Damage 4343 | . . . . 149 . . . . . . . 626 652 . 95 . . . . 2821 . . . . . . . . Kills 44 | . . . . 3 . . . . . . . 10 10 . 1 . . . . 20 . . . . . . . . Allies Corrupted 5 | . . . . . . . . . . . . 5 . . . . . . . . . . . . . . . . Allies Melted . | . . . . . . . . . . . . . . . . . . . . . . . . . . . . . Intel | -11 -10 -10 -9 -9 -9 -8 -8 -8 -8 -8 -7 -7 -7 -5 -5 -5 -5 -4 -4 -4 -3 -3 -3 -3 -3 -3 -2 -1 ------- Run | Scr Mat Min Mat Min Exi Min Mat Gar Mat Gar Fac Sto Rec Fac Gar Fac Gar Fac Gar Ext Res Gar Res Gar Res Arm Res Acc Robot Analysis Total . | . . . . . . . . . . . . . . . . . . . . . . . . . . . . . Derelict Logs Recovered 3 | . . 1 . 2 . . . . . . . . . . . . . . . . . . . . . . . . Drone Launches 22 | . . . . . . . . . . . . 16 . . . . . . . . 2 . 2 . . . . 2 Drone Recoveries . | . . . . . . . . . . . . . . . . . . . . . . . . . . . . . Exploration | -11 -10 -10 -9 -9 -9 -8 -8 -8 -8 -8 -7 -7 -7 -5 -5 -5 -5 -4 -4 -4 -3 -3 -3 -3 -3 -3 -2 -1 ------------- Run | Scr Mat Min Mat Min Exi Min Mat Gar Mat Gar Fac Sto Rec Fac Gar Fac Gar Fac Gar Ext Res Gar Res Gar Res Arm Res Acc Turns Passed 6660 | 17 60 115 72 314 111 61 125 75 85 41 490 1672 525 83 144 211 53 106 72 480 422 67 188 152 175 254 132 358 Spaces Moved 9199 | 28 118 204 137 438 218 57 238 94 153 79 909 793 542 100 153 408 97 195 144 825 765 125 331 105 325 456 311 851 Core 1533 | 28 118 204 132 438 218 57 238 94 6 . . . . . . . . . . . . . . . . . . . Treads . | . . . . . . . . . . . . . . . . . . . . . . . . . . . . . Legs . | . . . . . . . . . . . . . . . . . . . . . . . . . . . . . Wheels . | . . . . . . . . . . . . . . . . . . . . . . . . . . . . . Hover . | . . . . . . . . . . . . . . . . . . . . . . . . . . . . . Flight 7666 | . . . 5 . . . . . 147 79 909 793 542 100 153 408 97 195 144 825 765 125 331 105 325 456 311 851 Fastest Speed 39 | 50 50 50 40 50 50 50 50 50 50 50 50 50 50 50 50 50 50 50 50 50 50 50 50 50 50 50 39 39 Average Speed 48 | 50 50 50 49 50 50 50 50 50 50 50 50 50 50 50 50 50 50 50 50 50 50 50 50 50 50 50 39 39 Slowest Speed 50 | 50 50 50 50 50 50 50 50 50 50 50 50 50 50 50 50 50 50 50 50 50 50 50 50 50 50 50 39 39 Overloaded Moves . | . . . . . . . . . . . . . . . . . . . . . . . . . . . . . Propulsion Burnouts . | . . . . . . . . . . . . . . . . . . . . . . . . . . . . . Robots Hopped 76 | . . . . . . . . . . . 5 7 4 . . . . . 4 21 3 1 6 1 3 1 5 15 Cave-ins Triggered . | . . . . . . . . . . . . . . . . . . . . . . . . . . . . . Exploration Rate (%) 35 | 3 24 63 23 87 61 16 27 30 19 33 32 90 98 3 34 16 36 5 45 67 27 46 12 39 12 31 8 29 Regions Visited 28 Branch Regions 8 Pre-discovered Areas 7 | . . . . . . . . . . . . . 7 . . . . . . . . . . . . . . . Known Exits Taken 15 | . . . 1 . . . 1 . 1 . 1 1 1 1 . 1 . 1 . 1 1 . 1 . 1 1 1 . Unknown Exits Taken 6 | 1 1 1 . 1 1 1 . . . . . . . . . . . . . . . . . . . . . . Scrap Searched 5 | . . 2 . 3 . . . . . . . . . . . . . . . . . . . . . . . . Spaces Dug 27 | . . . . . . . . . . . 1 14 . . . . . . . 2 . . 1 . . 2 . 7 Terrain Destroyed 34 | . . . . . . . . . . . 1 14 . . 7 . . . . 2 . . 1 . . 2 . 7 Melee 27 | . . . . . . . . . . . 1 14 . . . . . . . 2 . . 1 . . 2 . 7 Projectile . | . . . . . . . . . . . . . . . . . . . . . . . . . . . . . AOE 7 | . . . . . . . . . . . . . . . 7 . . . . . . . . . . . . . Actions | -11 -10 -10 -9 -9 -9 -8 -8 -8 -8 -8 -7 -7 -7 -5 -5 -5 -5 -4 -4 -4 -3 -3 -3 -3 -3 -3 -2 -1 --------- Run | Scr Mat Min Mat Min Exi Min Mat Gar Mat Gar Fac Sto Rec Fac Gar Fac Gar Fac Gar Ext Res Gar Res Gar Res Arm Res Acc Total 11127 | 29 118 215 140 531 219 88 244 121 160 79 936 2003 780 131 191 412 99 202 139 858 795 125 343 202 332 472 314 849 Wait 1704 | . . 8 . 91 . 32 . . . . 20 1163 220 29 . . . . . 33 3 1 . 99 . . 4 1 Move 9040 | 27 117 203 136 437 217 56 238 93 153 78 898 778 533 99 152 407 96 194 136 795 760 122 319 102 319 453 301 821 Hop 58 | . . . . . . . . . . . 5 7 4 . . . . . 3 8 2 1 6 1 2 1 4 14 Pick Up 27 | . 1 1 . . 1 . . . 1 . 4 4 2 . . . . 1 . . 9 . . . 2 . . 1 Fast Attach 41 | 2 . 1 . 2 . . 2 . 3 . 5 3 . . . 4 . 1 . 3 7 . . . 3 . 2 3 Attach 13 | . . . 1 . . . 1 . 1 . . . 1 2 . 1 . . . 3 1 . . . 1 . 1 . Detach 1 | . . . . . . . 1 . . . . . . . . . . . . . . . . . . . . . Swap 10 | . . . . . . . . . . 1 . 3 1 1 1 . . . . . 1 . . . 2 . . . Drop 21 | . . . . . 1 . 2 . 2 . 3 1 . . . . . . . . 8 . . . 3 . . 1 Fire 12 | . . . . . . . . . . . . . . . 12 . . . . . . . . . . . . . Melee 102 | . . . . . . . . . . . 1 36 19 . 9 . 1 . . 16 3 1 2 . . 5 2 7 Ram 7 | . . 2 3 1 . . . 1 . . . . . . . . . . . . . . . . . . . . Kick . | . . . . . . . . . . . . . . . . . . . . . . . . . . . . . Crush . | . . . . . . . . . . . . . . . . . . . . . . . . . . . . . Escape Stasis 80 | . . . . . . . . 27 . . . . . . 17 . 2 6 . . . . 15 . . 13 . . Rewire . | . . . . . . . . . . . . . . . . . . . . . . . . . . . . . Trap . | . . . . . . . . . . . . . . . . . . . . . . . . . . . . . Miscellaneous 11 | . . . . . . . . . . . . 8 . . . . . . . . 1 . 1 . . . . 1 Route ------- -11/Scrapyard -10/Materials (discovered 2 exits: *Mat / [*Min]) -10/Mines -9/Materials (discovered 3 exits: *Mat / *Min x2) -9/Mines (discovered 4 exits: *Mat x2 / *Exi / [*Zio]) -9/Exiles -8/Mines -8/Materials -8/Garrison -8/Materials -8/Garrison -7/Factory (discovered 4 exits: *Fac / *Sto / *Low x2) -7/Storage (discovered 2 exits: *Fac / *Rec) -7/Recycling -5/Factory -5/Garrison -5/Factory -5/Garrison -4/Factory -4/Garrison -4/Extension (discovered 2 exits: *Res / [*Cet]) -3/Research (discovered 4 exits: Arm / Qua x2 / Gar) -3/Garrison -3/Research (discovered 2 exits: *Res / Gar) -3/Garrison -3/Research -3/Armory -2/Research -1/Access To Epsilon Eridani History --------- Turn | Location | Event 6 | -11/Scrapyard | Discovered new exit (range 16) 18 | -11/Scrapyard | Entered Materials 41 | -10/Materials | Discovered new exit (range 10) 62 | -10/Materials | Discovered new exit (range 6) 78 | -10/Materials | Entered Mines 87 | -10/Mines | Assembled infested the area 92 | -10/Mines | Assisted by a Guerilla fighting off Assembled 173 | -10/Mines | Learned Materials non-interactive machine intel 188 | -10/Mines | Discovered new exit (range 11) 193 | -10/Mines | Entered Materials 193 | -9/Materials | Evolved 2 slots: Propulsion x1, Utility x1 194 | -9/Materials | Loaded intel: 36 non-interactive machine locations 217 | -9/Materials | Identified exit to Mines 237 | -9/Materials | Discovered new exit (range 14) 249 | -9/Materials | Core integrity fell below 50% 265 | -9/Materials | Entered Mines 273 | -9/Mines | Discovered new exit (range 7) 280 | -9/Mines | Lost 3 parts (3n) 318 | -9/Mines | Build established: Mutant 342 | -9/Mines | A Derelict revealed a hidden shortcut to a safe place 374 | -9/Mines | Discovered new exit (range 11) 466 | -9/Mines | A weapon hastily lodged in a ceiling crevice suddenly fell to the ground 470 | -9/Mines | Learned Materials security intel 507 | -9/Mines | Learned Materials emergency access door positions 508 | -9/Mines | Met a Derelict shopkeep closing up shop 577 | -9/Mines | Deemed a non-threat by the Exiles lab entrance 577 | -9/Mines | Discovered new exit (range 5) 579 | -9/Mines | Entered Exiles 592 | -9/Exiles | Met 8R-AWN 600 | -9/Exiles | Met EX-HEX 617 | -9/Exiles | Met EX-BIN 622 | -9/Exiles | Aligned with FarCom system 623 | -9/Exiles | Given EX-Vault access code 636 | -9/Exiles | Opened EX-Vault 640 | -9/Exiles | Found Flying Fortress v7 652 | -9/Exiles | Warned to stay clear of 0b10 Research branches 659 | -9/Exiles | Exiles lab attacked by MAIN.C 685 | -9/Exiles | Discovered new exit (range 11) 690 | -9/Exiles | Left Exiles lab with Flying Fortress v7 690 | -9/Exiles | Entered Mines 744 | -8/Mines | Discovered new exit (range 12) 751 | -8/Mines | Entered Materials 751 | -8/Materials | Evolved 2 slots: Propulsion x1, Utility x1 876 | -8/Materials | Identified exit to Garrison 876 | -8/Materials | Entered Garrison 879 | -8/Garrison | Installed Relay Interface Framework 922 | -8/Garrison | Triggered checkpoint 934 | -8/Garrison | Core integrity fell below 50% 936 | -8/Garrison | Discovered new exit (range 8) 951 | -8/Garrison | Entered Materials 1036 | -8/Materials | Identified exit to Garrison 1036 | -8/Materials | Entered Garrison 1056 | -8/Garrison | Triggered checkpoint 1070 | -8/Garrison | Discovered new exit (range 15) 1077 | -8/Garrison | Identified exit to Factory 1077 | -8/Garrison | Entered Factory 1077 | -7/Factory | Evolved 2 slots: Power x1, Utility x1 1264 | -7/Factory | Discovered new exit (range 7) 1267 | -7/Factory | Identified exit to Factory 1421 | -7/Factory | Identified exit to Storage 1421 | -7/Factory | Identified exit to Lower Caves 1567 | -7/Factory | Entered Storage 1582 | -7/Storage | Assisted by bots powering up and referring to "LRC-V3" 1631 | -7/Storage | Garrison activated, responded to threat 1721 | -7/Storage | Discovered exit to Factory (range 17) 1781 | -7/Storage | Used back door to open Recycling access 1781 | -7/Storage | Discovered new exit (range 5) 3239 | -7/Storage | Identified exit to Recycling 3239 | -7/Storage | Entered Recycling 3272 | -7/Recycling | Spotter reported a threat 3314 | -7/Recycling | Spotter reported a threat 3336 | -7/Recycling | Spotter reported a threat 3336 | -7/Recycling | Spotter reported a threat 3346 | -7/Recycling | Spotter reported a threat 3375 | -7/Recycling | Spotter reported a threat 3376 | -7/Recycling | Spotter reported a threat 3392 | -7/Recycling | Spotter reported a threat 3407 | -7/Recycling | Discovered new exit (range 11) 3422 | -7/Recycling | Spotter reported a threat 3428 | -7/Recycling | Spotter reported a threat 3429 | -7/Recycling | Spotter reported a threat 3445 | -7/Recycling | Spotter reported a threat 3475 | -7/Recycling | Spotter reported a threat 3481 | -7/Recycling | Spotter reported a threat 3482 | -7/Recycling | Spotter reported a threat 3528 | -7/Recycling | Spotter reported a threat 3534 | -7/Recycling | Spotter reported a threat 3540 | -7/Recycling | Spotter reported a threat 3541 | -7/Recycling | Spotter reported a threat 3547 | -7/Recycling | Identified exit to Factory 3581 | -7/Recycling | Spotter reported a threat 3587 | -7/Recycling | Spotter reported a threat 3592 | -7/Recycling | Spotter reported a threat 3634 | -7/Recycling | Spotter reported a threat 3764 | -7/Recycling | Entered Factory 3764 | -5/Factory | Accompanied by 2 allies 3764 | -5/Factory | Evolved 4 slots: Utility x4 3786 | -5/Factory | Identified exit to Garrison 3847 | -5/Factory | Entered Garrison 3847 | -5/Garrison | Accompanied by 1 ally 3924 | -5/Garrison | Triggered checkpoint 3953 | -5/Garrison | Triggered checkpoint 3968 | -5/Garrison | Triggered checkpoint 3981 | -5/Garrison | Discovered new exit (range 12) 3986 | -5/Garrison | Identified exit to Factory 3989 | -5/Garrison | Expanded RIF knowledge: Structural Interface 3991 | -5/Garrison | Entered Factory 4007 | -5/Factory | Lost 6 parts (2p3u1w) 4201 | -5/Factory | Identified exit to Garrison 4202 | -5/Factory | Entered Garrison 4213 | -5/Garrison | Garrison Relay disabled 4236 | -5/Garrison | Triggered checkpoint 4252 | -5/Garrison | Discovered new exit (range 8) 4255 | -5/Garrison | Identified exit to Factory 4255 | -5/Garrison | Entered Factory 4255 | -4/Factory | Evolved 2 slots: Utility x2 4322 | -4/Factory | Identified exit to Garrison 4361 | -4/Factory | Entered Garrison 4404 | -4/Garrison | Triggered checkpoint 4427 | -4/Garrison | Discovered new exit (range 10) 4431 | -4/Garrison | Identified exit to Extension 4433 | -4/Garrison | Entered Extension 4452 | -4/Extension | Rescued a captive Derelict 4453 | -4/Extension | Rescued a captive Derelict 4460 | -4/Extension | Lost 3 parts (2u1w) 4460 | -4/Extension | Rescued a captive Derelict 4469 | -4/Extension | Rescued a captive Derelict 4484 | -4/Extension | Rescued a captive Derelict 4572 | -4/Extension | Rescued a captive Derelict 4814 | -4/Extension | Spotted B-86 Titan 4819 | -4/Extension | Spotted B-86 Titan 4897 | -4/Extension | Discovered new exit (range 16) 4897 | -4/Extension | Discovered new exit (range 15) 4904 | -4/Extension | Identified exit to Research 4913 | -4/Extension | Entered Research 4913 | -3/Research | Evolved 2 slots: Utility x2 5013 | -3/Research | Found Enh. Force Lance 5132 | -3/Research | Identified exit to Armory 5132 | -3/Research | Identified exit to Quarantine 5304 | -3/Research | Spotted B-86 Titan 5335 | -3/Research | Identified exit to Garrison 5335 | -3/Research | Entered Garrison 5360 | -3/Garrison | Spotted B-86 Titan 5361 | -3/Garrison | Triggered checkpoint 5382 | -3/Garrison | Garrison Relay disabled 5397 | -3/Garrison | Discovered new exit (range 10) 5401 | -3/Garrison | Identified exit to Research 5402 | -3/Garrison | Entered Research 5407 | -3/Research | Build established: Infiltrator-Mutant 5532 | -3/Research | Discovered new exit (range 16) 5590 | -3/Research | Identified exit to Garrison 5590 | -3/Research | Entered Garrison 5723 | -3/Garrison | Triggered checkpoint 5738 | -3/Garrison | Discovered new exit (range 8) 5741 | -3/Garrison | Identified exit to Research 5742 | -3/Garrison | Entered Research 5900 | -3/Research | Discovered exit to Armory (range 16) 5917 | -3/Research | Entered Armory 6165 | -3/Armory | Discovered new exit (range 8) 6170 | -3/Armory | Identified exit to Research 6171 | -3/Armory | Entered Research 6171 | -2/Research | Evolved 2 slots: Propulsion x1, Utility x1 6283 | -2/Research | Discovered new exit (range 15) 6289 | -2/Research | Identified exit to Access 6303 | -2/Research | Entered Access 6303 | -1/Access | Evolved 2 slots: Utility x2 6317 | -1/Access | Spotted B-99 Colossus 6631 | -1/Access | Spotted B-99 Colossus 6658 | -1/Access | Discovered new exit (range 7) 6660 | -1/Access | Identified exit to Surface 6661 | *** | Escaped! Last Messages --------------- 06612_ P-80 Master unfolds itself. 06612_ K-01 Serf collects debris. 06613_ Acquired 89 matter. 06614_ K-01 Serf collects debris. 06615_ System corrupted: Energy discharge (-147). 06621_ Imp. Datajack destroyed. 06623_ S-43 Plague suffers critical hit. 06623_ S-43 Plague destroyed. 06623_ Imp. Cloaking Device destroyed. 06625_ R-10 Processor collects Lgt. Antimatter Reactor. 06625_ Imp. Phase Shifter destroyed. 06631_ Connecting with Terminal... 06632_ Penetrated by Slug. 06632_ Slug penetrates Terminal. 06651_ Adv. Force Field destroyed. 06653_ FILTR1SGOEJJYVTRE7JT51 Sealed Barrier opened remotely. 06658_ The Access Shell folds into the floor. 06658_ EXIT=FOUND 06660_ EXIT=IDENTIFIED: SURFACE Map ----- +----------------------------------------------------+ | ?????????????????????????????????????????????????? | | ?????????????????????????????????????????????????? | | ?????????????????????????????????????????????????? | | ?????????????????????????????????????????????????? | | ?????????????????????????????????????????????????? | | ???????????????#????#????????????????????????????? | | ?????????????????????????????????????????????????? | | ???????????????????????????????????#?????????????? | | ???????????????????????#?????????????????????????? | | ?????????????????????????????????????????????????? | | ?????????????????????????????????????????????????? | | ?????????????????????????????????????????????????? | | ?????????????????????????????????????????????????? | | ?????????????????????????????????????????????????? | | ??????????# ????????????????????????????????????? | | ??????????# ????????????????????????#??????? ???? | | ??????????# ????????????????????????????????????? | | ??????????# ????????????????????????????????????? | | ??????????# ???#??###???????????????????????????? | | ??????????# ####### ##########???#######????????? | | ??????????# """T""" "??? ????????? | | ??????????# """ """ "??" BB ????????? | | ???????#### "??" BB #####+### | | ????? # "??" | | ????? # "" "??? | | ????? # @" "????? | | ?????" # "??????? | | ?"""" # "????BB??? | | """"" # "????BB????# | | """" # s "??????????# | | " # ####### ##########??????????# | | # #?????###???????????????????# "" "" | | # ##############??????????????# ""T"" | | ? # # #?#????????????# """ | | ??? # # #???#?????#????# ####### | | ??? ? # + """"" #?????########## #????# | | #######+### # """""""" #?????# # #????# | | # """""""" #?????# # #?#??# | | / """"" #?????# # #????# | | #######+####+# ####??# " # #????# | | ????? # +p #??# """ # #??#?# | | ??? # ## #??# ^""" # #????# | | ? = #[ ## #??# " / #????# | | # =] # ## #?## ! # #????# | | # =] # ## #??# # ##???## | | # ! ###+###########/#### ######## #?????? | | # #?? ???# [#???# #?????? | | # #?? ???# #???# #?????? | | # #?? #??# """"" """"" #???# #?????? | | + #?? ???# """"" """"" #???# #?????? | +----------------------------------------------------+ Best States ------------- Heat Dissipation 52 Energy Generation 53 Energy Capacity 580 Matter Stores 300 Matter Capacity 300 Sight Range 16 Terrain Scan Range 24 Terrain Scan Density 10 Jamming Range 16 Cloak Strength 3 Additional Mass Support 12 Armor Coverage 525 Resistance: KI 20 Resistance: EM 15 Power Shielding 66 Propulsion Shielding 66 Evasion (%) 62 Force Boost 3 Defensive Hacking 10 Item Schematics ----------------- None Robot Schematics ------------------ None Fabricated ------------ Nothing Alien Tech Used ----------------- None Achievements -------------- None Challenges ------------ None Game ------ Seed DroneAluminumCoupler Manual? 0 Play Time 01:46:09 Cumulative 488.1 hours Start 2020.02.16 @ 23:24:01 End 2020.02.17 @ 23:37:10 Sessions 5 Manual Loads 0 Difficulty Rogue Special Mode None Game No. 401 Rogue 401 Adventurer 0 Explorer 0 Win Type 0 Total 133 Types 82/7/29/6/3/2/4 Lore% 99 Gallery% 96 Achievement% 83 Wizard Run 0 Options --------- ASCII 1 Keyboard 0 Movement Vi Keybinds 0 Fullscreen 1 Font 24/Smallcaps Map View 76x50 Tactical HUD 1 Map Filters NONE Filters NONE Steam 1 RUN: c49ac9ed-e89d-43b8-bc63-4de5526871fd